[Event "3rd Gujarat GM Open 2022"]
[Site "Ahmedabad"]
[Date "2022.04.07"]
[Round "10.12"]
[White "Saravana, Krishnan P."]
[Black "Krishna C R G"]
[Result "0-1"]
[ECO "B42"]
[WhiteElo "2340"]
[BlackElo "2466"]
[Annotator "TA"]
[PlyCount "79"]
[EventDate "2022.03.31"]
[EventType "swiss"]
[EventCountry "IND"]
[SourceTitle "playchess.com"]
[Source "ChessBase"]
[SourceQuality "1"]
[TimeControl "5400+30"]

{[%evp 46,79,16,19,47,22,22,11,16,14,17,3,5,0,-6,-217,-216,-340,-329,-572,-568,-735,-629,-586,-324,-316,-308,-302,-314,-321,-319,-314,-311,-309,-288,-273]} 1. e4 {[%emt 1:31:00]} c5 {[%emt 1:31:00]} 2. Nf3 {[%emt 0:00:30]} e6 {[%emt 0:00:30]} 3. d4 {[%emt 0:00:30]} cxd4 {[%emt 0:00:30]} 4. Nxd4 {[%emt 0:00:30]} a6 {[%emt 0:00:30]} 5. Bd3 {[%emt 0:00:30]} Nf6 {[%emt 0:00:30]} 6. Qe2 {[%emt 0:00:30]} Qb6 {[%emt 0:00:30]} 7. Nf3 {[%emt 0:00:30]} d6 {[%emt 0:00:30]} 8. b3 {[%emt 0:00:30]} g6 {[%emt 0:00:30]} 9. Bb2 {[%emt 0:00:30]} Bg7 {[%emt 0:00:30]} 10. Nbd2 {[%emt 0:00:30]} O-O {[%emt 0:00:30]} 11. Nc4 {[%emt 0:00:30]} Qd8 {[%emt 0:00:30]} 12. O-O {[%emt 0:00:30]} d5 {[%emt 0:00:30]} 13. Nce5 {[%emt 0:00:30]} Nh5 {[%emt 0:00:30]} 14. exd5 {[%emt 0:00:30]} exd5 {[%emt 0:00:30]} 15. Qd2 {[%emt 0:00:30]} Qc7 {[%emt 0:00:30]} 16. Rfe1 {[%emt 0:00:30]} Bg4 {[%emt 0:00:30]} 17. c4 {[%emt 0:00:30]} Bxf3 {[%emt 0:00:30]} 18. Nxf3 {[%emt 0:00:30]} dxc4 {[%emt 0:00:30]} 19. Bxg7 {[%emt 0:00:30]} Kxg7 {[%emt 0:00:30]} 20. Bxc4 {[%emt 0:00:30]} Nc6 {[%emt 0:00:30]} 21. Qb2+ {[%emt 0:00:30]} Kg8 {[%emt 0:00:30]} 22. g3 {[%emt 0:00:30]} Rad8 {[%emt 0:00:30]} 23. Rad1 {[%emt 0:00:30]} Rxd1 {[%emt 0:00:30]} 24. Rxd1 {[%emt 0:00:30]} Qe7 {[%emt 0:00:30]} 25. Kg2 {[%emt 0:00:30]} (25. Qc1 $5 {[%cal Rc4a6]}) 25... Nf6 {[%emt 0:00:30]} 26. Qc1 {[%emt 0:00:30]} Rd8 {[%emt 0:00:30]} 27. Re1 {[%emt 0:00:30]} Qd6 {[%emt 0:00:30]} 28. Re2 {[%emt 0:00:30]} Kg7 {[%emt 0:00:30]} 29. Qc3 {[%emt 0:00:30]} b5 {[%emt 0:00:30]} 30. g4 $2 {[%emt 0:00:30]} (30. Rd2 $2 Qc5 31. Rc2 (31. Rxd8 $2 Nxd8 32. Qe5 Qxe5 $19) 31... bxc4 $19) (30. Be6 $1 $11 {and White stays safe.}) 30... h6 $19 {[%emt 0:00:30]} (30... bxc4 31. g5 $17) 31. g5 {[%emt 0:00:30]} (31. h4 {only move.} Qb4 32. Qxb4 Nxb4 33. a3 (33. g5 $2 Nh5 $19)) 31... hxg5 $19 {[%emt 0:00:30]} ({Weaker is} 31... bxc4 32. Rd2 Qe7 33. Rxd8 Nxd8 34. gxf6+ Qxf6 35. Qxc4 $11) 32. Be6 $2 {[%emt 0:00:30]} (32. Bxf7 {was the only chance.} Kxf7 33. Nxg5+ Kg8 34. Qg3) 32... b4 $19 {[%emt 0:00:30]} 33. Qe1 {[%emt 0:00:30]} fxe6 {[%emt 0:00:30]} 34. Rxe6 {[%emt 0:00:30]} Qd5 {[%emt 0:00:30]} 35. Rxc6 {[%emt 0:00:30]} Qxc6 {[%emt 0:00:30]} 36. Qe7+ {[%emt 0:00:30]} Kh6 {[%emt 0:00:30]} 37. Qxd8 {[%emt 0:00:30]} g4 {[%emt 0:00:30]} 38. Qf8+ {[%emt 0:00:30]} Kh7 {[%emt 0:00:30]} 39. Qf7+ {[%emt 0:00:30] [#]} Kh8 $1 {[%emt 0:00:30]} ({Not} 39... Kh6 $2 40. Qf8+ Kh7 41. Qf7+ Kh8 42. Qf8+ Kh7) 40. Qf8+ {[%emt 0:00:30]} 0-1

[Event "3rd Gujarat GM Open 2022"]
[Site "Ahmedabad"]
[Date "2022.04.07"]
[Round "10.13"]
[White "Sangma, Rahul"]
[Black "Neelash Saha"]
[Result "0-1"]
[ECO "A13"]
[WhiteElo "2286"]
[BlackElo "2445"]
[Annotator "TA"]
[PlyCount "168"]
[EventDate "2022.03.31"]
[EventType "swiss"]
[EventCountry "IND"]
[SourceTitle "playchess.com"]
[Source "ChessBase"]
[SourceQuality "1"]
[TimeControl "5400+30"]

{[%evp 113,168,-10,-10,-10,-10,-10,-8,-8,-8,-8,-8,-45,-8,-31,-16,-35,-29,-112,-113,-165,-165,-1326,-1175,-1030,0,0,0,0,0,0,0,0,-8,-4582,-3019,-1264,-208,-208,-8,-29962,-29966,-29971,-29972,-29973,-29974,-29976,-29977,-29977,-29978,-29980,-29981,-29981,-29982,-29982,-29983,-29982,-29983]} 1. c4 {[%emt 0:03:19]} e6 {[%emt 0:09:23]} 2. Nf3 {[%emt 0:00:12]} Nf6 {[%emt 0:00:07]} 3. Nc3 {[%emt 0:00:39]} d5 {[%emt 0:00:08]} 4. e3 {[%emt 0:00:03]} Be7 {[%emt 0:00:17]} 5. b3 {[%emt 0:00:22]} c5 {[%emt 0:00:36]} 6. Bb2 {[%emt 0:00:18]} O-O {[%emt 0:00:53]} 7. d4 {[%emt 0:04:13]} Nc6 {[%emt 0:00:36]} 8. dxc5 {[%emt 0:12:07]} Bxc5 {[%emt 0:01:11]} 9. cxd5 {[%emt 0:05:07]} Nxd5 {[%emt 0:00:16]} 10. Nxd5 {[%emt 0:00:03]} exd5 {[%emt 0:00:06]} 11. a3 {[%emt 0:00:09]} Bg4 {[%emt 0:03:48]} 12. Be2 {[%emt 0:00:03]} d4 {[%emt 0:02:14]} 13. Bxd4 {[%emt 0:15:00]} Nxd4 {[%emt 0:01:47]} 14. Nxd4 {[%emt 0:00:38]} Bxd4 {[%emt 0:00:10]} 15. Qxd4 {[%emt 0:00:11]} Qxd4 {[%emt 0:00:20]} 16. exd4 {[%emt 0:00:02]} Rfe8 {[%emt 0:00:05]} 17. f3 {[%emt 0:01:36]} Be6 {[%emt 0:00:15]} 18. Rb1 {[%emt 0:08:58]} Rad8 {[%emt 0:00:33]} 19. Kf2 {[%emt 0:01:14]} Rxd4 {[%emt 0:01:03]} 20. Rhd1 {[%emt 0:00:46]} Rxd1 {[%emt 0:00:10]} 21. Bxd1 {[%emt 0:00:02]} Rc8 {[%emt 0:00:10]} 22. Rb2 {[%emt 0:09:00]} Kf8 {[%emt 0:01:06]} 23. a4 {[%emt 0:05:44]} Ke7 {[%emt 0:01:02]} 24. b4 {[%emt 0:00:57]} Rc4 {[%emt 0:01:17]} 25. Ke3 {[%emt 0:04:13]} Kd6 {[%emt 0:01:19]} 26. f4 {[%emt 0:01:11]} Bd5 {[%emt 0:03:10]} 27. g3 {[%emt 0:01:59]} Rc3+ {[%emt 0:00:25]} 28. Kd4 {[%emt 0:00:36]} Rc1 {[%emt 0:02:07]} 29. Bb3 {[%emt 0:06:43]} Bxb3 {[%emt 0:00:37]} 30. Rxb3 {[%emt 0:00:02]} b6 {[%emt 0:00:07]} 31. Ra3 {[%emt 0:01:42]} h5 {[%emt 0:01:31]} 32. b5 {[%emt 0:00:58]} Rd1+ {[%emt 0:02:39]} 33. Ke4 {[%emt 0:04:20]} Rc1 {[%emt 0:00:37]} 34. Rd3+ {[%emt 0:02:10]} Ke6 {[%emt 0:00:13]} 35. f5+ {[%emt 0:02:31]} Kf6 {[%emt 0:00:14]} 36. Rd6+ {[%emt 0:00:01]} Ke7 {[%emt 0:00:06]} 37. Rd4 {[%emt 0:00:19]} Rc2 {[%emt 0:08:18]} 38. h4 {[%emt 0:00:43]} Rc3 {[%emt 0:01:29]} 39. Kf4 {[%emt 0:00:59]} f6 {[%emt 0:00:30]} 40. Re4+ {[%emt 0:04:45]} Kf8 {[%emt 0:00:55]} 41. Rd4 {[%emt 0:00:10]} Ra3 {[%emt 0:00:07]} 42. Rc4 {[%emt 0:00:29]} Ke8 {[%emt 0:00:12]} 43. Rc7 {[%emt 0:06:40]} Rxa4+ {[%emt 0:00:07]} 44. Kf3 {[%emt 0:00:12]} Kf8 {[%emt 0:00:06]} 45. Rb7 {[%emt 0:00:24]} Kg8 {[%emt 0:01:04]} 46. Ke3 {[%emt 0:00:20]} Kh7 {[%emt 0:00:14]} 47. Kf3 {[%emt 0:00:06]} Kh6 {[%emt 0:00:31]} 48. Ke3 {[%emt 0:00:32]} Ra5 {[%emt 0:01:11]} 49. Ke4 {[%emt 0:00:45]} g6 {[%emt 0:01:55]} 50. fxg6 {[%emt 0:01:17]} Kxg6 {[%emt 0:00:08]} 51. Kf4 {[%emt 0:00:26]} Ra4+ {[%emt 0:00:23]} 52. Kf3 {[%emt 0:00:16]} Kf5 {[%emt 0:00:05]} 53. Rh7 {[%emt 0:00:24]} Ra3+ {[%emt 0:00:16]} 54. Kg2 {[%emt 0:00:01]} Kg6 {[%emt 0:00:35]} 55. Rd7 {[%emt 0:00:05]} Ra5 {[%emt 0:06:46]} 56. Kf3 {[%emt 0:00:03]} Rxb5 {[%emt 0:00:06]} 57. Rxa7 {[%emt 0:00:03]} Kf5 {[%emt 0:00:05]} 58. Re7 {[%emt 0:00:39]} Rb3+ {[%emt 0:00:55]} 59. Kg2 $1 {[%emt 0:00:01]} b5 {[%emt 0:00:39]} 60. Rh7 {[%emt 0:00:15]} Kg6 {[%emt 0:01:38]} 61. Rb7 {[%emt 0:00:01]} b4 {[%emt 0:00:12]} 62. Rb5 {[%emt 0:00:44]} Rb2+ {[%emt 0:03:02]} 63. Kf3 {[%emt 0:00:02]} Rb1 {[%emt 0:00:06]} 64. Kf2 {[%emt 0:00:24]} b3 {[%emt 0:01:10]} 65. Kg2 {[%emt 0:00:02]} (65. Kf3 $11 b2 66. Kg2) 65... f5 $17 {[%emt 0:00:09]} 66. Rb6+ {[%emt 0:00:22]} (66. Kf2 $17) 66... Kf7 $19 {[%emt 0:00:06]} 67. Rb5 $2 {[%emt 0:03:40]} (67. Kf2) 67... Ke6 $19 {[%emt 0:00:06]} 68. Kh2 {[%emt 0:01:07]} Kd6 $2 {[%emt 0:02:18]} (68... Rb2+ $19 69. Kh3 Rb1) 69. Rxf5 $11 {[%emt 0:00:06]} Kc6 {[%emt 0:00:09]} 70. Rf8 $1 {[%emt 0:01:23]} Kc5 {[%emt 0:00:27]} 71. Rc8+ {[%emt 0:00:32]} Kb4 {[%emt 0:01:35]} 72. Rb8+ {[%emt 0:00:05]} Kc3 {[%emt 0:00:14]} 73. Rc8+ $2 {[%emt 0:00:45][%mdl 8192]} (73. g4 $11) 73... Kb2 $1 $19 {[%emt 0:00:10]} 74. Rc5 {[%emt 0:00:06]} Rc1 $2 {[%emt 0:03:25]} (74... Re1 75. Kh3 Ka3 76. Rxh5 b2) 75. Rxh5 $19 {[%emt 0:00:02]} Rc4 $2 {[%emt 0:00:06]} ({Better is} 75... Ka3 $19 {( -> ...b2)} 76. Rb5 b2) 76. Rb5 $2 {[%emt 0:00:49][%mdl 8192]} (76. Re5 $11) 76... Kc3 $1 {[%emt 0:00:14]} 77. h5 {[%emt 0:00:19]} b2 {[%emt 0:00:07]} 78. h6 {[%emt 0:00:06]} Rc6 {[%emt 0:00:17]} 79. g4 {[%emt 0:00:11]} Rxh6+ {[%emt 0:00:29]} 80. Kg3 {[%emt 0:00:05] [#]} Rh1 $1 {[%emt 0:00:40]} 81. g5 {[%emt 0:00:42]} b1=Q {[%emt 0:00:23]} 82. Rxb1 {[%emt 0:00:02]} Rxb1 {[%emt 0:00:06]} 83. Kf4 {[%emt 0:00:02]} Kd4 {[%emt 0:00:06]} 84. Kf5 {[%emt 0:00:03] [#]} Kd5 $1 {[%emt 0:00:04]} 0-1

[Event "3rd Gujarat GM Open 2022"]
[Site "Ahmedabad"]
[Date "2022.04.07"]
[Round "10.14"]
[White "Liyanage, Ranindu Dilshan"]
[Black "Vignesh N R"]
[Result "1/2-1/2"]
[ECO "C54"]
[WhiteElo "2340"]
[BlackElo "2444"]
[Annotator "TA"]
[PlyCount "61"]
[EventDate "2022.03.31"]
[EventType "swiss"]
[EventCountry "IND"]
[SourceTitle "playchess.com"]
[Source "ChessBase"]
[SourceQuality "1"]
[TimeControl "5400+30"]

{[%evp 16,61,0,0,0,0,12,0,0,3,17,17,58,49,47,45,52,39,59,9,74,21,20,30,27,25,16,21,20,0,0,0,0,0,0,0,0,0,0,-5,0,0,0,0,0,0,0,0]} 1. e4 {[%emt 1:31:00]} e5 {[%emt 1:31:00]} 2. Nf3 {[%emt 0:00:30]} Nc6 {[%emt 0:00:30]} 3. Bc4 {[%emt 0:00:30]} Bc5 {[%emt 0:00:30]} 4. c3 {[%emt 0:00:30]} Nf6 {[%emt 0:00:30]} 5. d4 {[%emt 0:00:30]} exd4 {[%emt 0:00:30]} 6. cxd4 {[%emt 0:00:30]} Bb4+ {[%emt 0:00:30]} 7. Nbd2 {[%emt 0:00:30]} d5 {[%emt 0:00:30]} 8. exd5 {[%emt 0:00:30]} Nxd5 {[%emt 0:00:30]} 9. O-O {[%emt 0:00:30]} O-O {[%emt 0:00:30]} 10. a3 {[%emt 0:00:30]} Bxd2 {[%emt 0:00:30]} 11. Qxd2 {[%emt 0:00:30]} Bf5 {[%emt 0:00:30]} 12. Re1 {[%emt 0:00:30]} h6 {[%emt 0:00:30]} 13. b4 {[%emt 0:00:30]} Qd6 {[%emt 0:00:30]} 14. b5 {[%emt 0:00:30]} Nce7 {[%emt 0:00:30]} 15. a4 {[%emt 0:00:30]} Rfe8 {[%emt 0:00:30]} 16. Ba3 {[%emt 0:00:30]} Qf6 {[%emt 0:00:30]} 17. Qe2 {[%emt 0:00:30]} (17. Re5 $14 Nb6 18. Bb3) 17... Bg4 {[%emt 0:00:30]} (17... Nf4 $11 18. Qe5 Ned5 19. Qxf6 (19. Qxe8+ Rxe8 20. Rxe8+ Kh7 $11) 19... Nxf6) 18. Qe5 {[%emt 0:00:30]} (18. Qe4 $16 Bxf3 19. Qxf3 (19. gxf3 Nf4 $17) 19... Qxf3 20. gxf3) 18... Bxf3 $11 {[%emt 0:00:30]} 19. Qxf6 {[%emt 0:00:30]} Nxf6 {[%emt 0:00:30]} 20. Rxe7 {[%emt 0:00:30]} Rxe7 {[%emt 0:00:30]} 21. Bxe7 {[%emt 0:00:30]} Bd5 {[%emt 0:00:30]} 22. Bxf6 {[%emt 0:00:30]} Bxc4 {[%emt 0:00:30]} 23. Be5 {[%emt 0:00:30]} c6 {[%emt 0:00:30]} 24. bxc6 {[%emt 0:00:30]} bxc6 {[%emt 0:00:30]} 25. Rb1 {[%emt 0:00:30]} Rd8 {[%emt 0:00:30]} 26. Rb8 {[%emt 0:00:30]} Rxb8 {[%emt 0:00:30]} 27. Bxb8 {[%emt 0:00:30]} a5 {[%emt 0:00:30]} 28. Bc7 {[%emt 0:00:30]} Bb3 {[%emt 0:00:30]} 29. Bxa5 {[%emt 0:00:30]} Bxa4 {[%emt 0:00:30]} 30. f3 {[%emt 0:00:30]} f6 {[%emt 0:00:30]} 31. Kf2 {[%emt 0:00:30]} 1/2-1/2

[Event "3rd Gujarat GM Open 2022"]
[Site "Ahmedabad"]
[Date "2022.04.07"]
[Round "10.15"]
[White "Aradhya, Garg"]
[Black "Hesham, Abdelrahman"]
[Result "1/2-1/2"]
[ECO "B12"]
[WhiteElo "2236"]
[BlackElo "2425"]
[Annotator "TA"]
[PlyCount "183"]
[EventDate "2022.03.31"]
[EventType "swiss"]
[EventCountry "IND"]
[SourceTitle "playchess.com"]
[Source "ChessBase"]
[SourceQuality "1"]
[TimeControl "5400+30"]

{[%evp 152,183,-8,-8,-8,-8,-8,-8,-8,-8,-8,-8,-8,-8,-8,-8,-8,-8,-8,-8,-8,-8,-8,-8,-8,-8,-8,-8,-8,-8,-8,-8,-8,-8]} 1. e4 {[%emt 0:06:35]} c6 {[%emt 0:02:09]} 2. d4 {[%emt 0:00:07]} d5 {[%emt 0:00:04]} 3. e5 {[%emt 0:00:08]} Bf5 {[%emt 0:00:04]} 4. h4 {[%emt 0:00:08]} h5 {[%emt 0:00:05]} 5. Bd3 {[%emt 0:00:16]} Bxd3 {[%emt 0:00:07]} 6. Qxd3 {[%emt 0:00:03]} e6 {[%emt 0:00:06]} 7. Bg5 {[%emt 0:00:15]} Qb6 {[%emt 0:00:45]} 8. Nd2 {[%emt 0:00:11]} Qa6 {[%emt 0:05:55]} 9. c4 {[%emt 0:00:38]} Ne7 {[%emt 0:02:19]} 10. Ngf3 {[%emt 0:01:57]} Nf5 {[%emt 0:01:21]} 11. O-O {[%emt 0:00:51]} Bb4 {[%emt 0:00:29]} 12. Rfc1 {[%emt 0:10:07]} Bxd2 {[%emt 0:01:30]} 13. Qxd2 {[%emt 0:04:47]} dxc4 {[%emt 0:00:50]} 14. b3 {[%emt 0:00:12]} c3 {[%emt 0:03:29]} 15. Qxc3 {[%emt 0:01:44]} O-O {[%emt 0:00:34]} 16. a4 {[%emt 0:09:05]} Nd7 {[%emt 0:00:44]} 17. Qc4 {[%emt 0:00:11]} Qxc4 {[%emt 0:01:16]} 18. bxc4 {[%emt 0:00:07]} f6 {[%emt 0:00:07]} 19. exf6 {[%emt 0:01:12]} gxf6 {[%emt 0:00:56]} 20. Bd2 {[%emt 0:02:35]} c5 {[%emt 0:00:18]} 21. Rcb1 {[%emt 0:06:57]} cxd4 {[%emt 0:01:18]} 22. Rxb7 {[%emt 0:00:05]} Nc5 {[%emt 0:00:13]} 23. Rb5 {[%emt 0:03:12]} Rfc8 {[%emt 0:01:09]} 24. Re1 {[%emt 0:02:17]} Rab8 {[%emt 0:06:53]} 25. a5 {[%emt 0:05:09]} a6 {[%emt 0:20:34]} 26. Rb6 {[%emt 0:06:19]} Kf7 {[%emt 0:00:25]} 27. Reb1 {[%emt 0:00:34]} Nd7 {[%emt 0:00:47]} 28. Rb7 {[%emt 0:00:49]} Ke8 {[%emt 0:01:25]} 29. c5 {[%emt 0:03:30]} e5 {[%emt 0:06:16]} 30. c6 {[%emt 0:02:00]} Rxb7 {[%emt 0:00:05]} 31. cxb7 {[%emt 0:00:03]} Rb8 {[%emt 0:00:08]} 32. Kh2 {[%emt 0:03:25]} Nd6 {[%emt 0:02:07]} 33. Bb4 {[%emt 0:07:22]} Nb5 {[%emt 0:02:55]} 34. Rc1 {[%emt 0:03:01]} Rxb7 {[%emt 0:00:08]} 35. Rc6 {[%emt 0:00:10]} Nc7 {[%emt 0:09:15]} 36. Bd6 {[%emt 0:00:48]} Nd5 {[%emt 0:00:07]} 37. Rxa6 {[%emt 0:22:10]} Rb2 {[%emt 0:00:17]} 38. Ra8+ {[%emt 0:00:00]} Kf7 {[%emt 0:01:16]} 39. Ra7 {[%emt 0:00:00]} Ke6 {[%emt 0:01:06]} 40. Ra6 {[%emt 0:00:00]} Kf5 {[%emt 0:01:13]} 41. Ra7 {[%emt 0:00:00]} Nb8 {[%emt 0:01:11]} 42. Bxb8 {[%emt 0:00:00]} Rxb8 {[%emt 0:00:06]} 43. a6 {[%emt 0:00:00]} Rb2 {[%emt 0:04:57]} 44. Rd7 {[%emt 0:00:00]} Ke6 {[%emt 0:00:33]} 45. a7 {[%emt 0:00:00]} Ra2 {[%emt 0:00:07]} 46. Rb7 {[%emt 0:00:00]} Ne7 {[%emt 0:05:34]} 47. Nd2 {[%emt 0:00:00]} Nc8 {[%emt 0:00:16]} 48. g4 {[%emt 0:00:00]} hxg4 {[%emt 0:01:08]} 49. h5 {[%emt 0:00:00]} Nxa7 {[%emt 0:20:23]} 50. h6 {[%emt 0:00:23]} Nc6 {[%emt 0:00:00]} 51. Ne4 {[%emt 0:00:40]} f5 {[%emt 0:00:00]} 52. Ng5+ {[%emt 0:01:37]} Kf6 {[%emt 0:00:00]} 53. h7 {[%emt 0:00:12]} Ra8 {[%emt 0:00:00]} 54. Nf7 {[%emt 0:00:13]} d3 {[%emt 0:00:00]} 55. h8=Q+ {[%emt 0:05:55]} Rxh8+ {[%emt 0:00:00]} 56. Nxh8 {[%emt 0:00:00]} d2 {[%emt 0:00:00]} 57. Rb1 {[%emt 0:00:00]} Nd4 {[%emt 0:00:00]} 58. Kg2 {[%emt 0:00:00]} Kg7 {[%emt 0:03:33]} 59. Kf1 {[%emt 0:00:35]} Kxh8 {[%emt 0:00:19]} 60. Rd1 {[%emt 0:00:02]} Nf3 {[%emt 0:00:06]} 61. Ke2 {[%emt 0:00:16]} Kg7 {[%emt 0:00:05]} 62. Ra1 {[%emt 0:00:17]} Kf6 {[%emt 0:00:26]} 63. Ra8 {[%emt 0:00:44]} Kg5 {[%emt 0:00:05]} 64. Rd8 {[%emt 0:00:24]} Kf4 {[%emt 0:00:18]} 65. Rg8 {[%emt 0:00:16]} Ng1+ {[%emt 0:01:43]} 66. Kxd2 {[%emt 0:00:24]} Kf3 {[%emt 0:00:05]} 67. Rg5 {[%emt 0:02:12]} f4 {[%emt 0:01:18]} 68. Ke1 {[%emt 0:00:22]} Nh3 {[%emt 0:00:59]} 69. Rxe5 {[%emt 0:00:07]} Nxf2 {[%emt 0:00:04]} 70. Kf1 {[%emt 0:00:25]} Kg3 {[%emt 0:00:56]} 71. Re2 {[%emt 0:00:32]} Nh3 {[%emt 0:00:22]} 72. Rg2+ {[%emt 0:00:34]} Kh4 {[%emt 0:00:24]} 73. Ra2 {[%emt 0:00:12]} f3 {[%emt 0:00:11]} 74. Ra4 {[%emt 0:00:58]} Kg3 {[%emt 0:00:16]} 75. Ra2 {[%emt 0:00:11]} Ng5 {[%emt 0:00:17]} 76. Ra4 {[%emt 0:00:49]} Ne6 {[%emt 0:00:32]} 77. Re4 {[%emt 0:00:27]} Ng7 {[%emt 0:00:58]} 78. Re5 {[%emt 0:00:25]} Kf4 {[%emt 0:00:10]} 79. Ra5 {[%emt 0:00:16]} Nf5 {[%emt 0:01:20]} 80. Ra4+ {[%emt 0:00:41]} Kg3 {[%emt 0:00:02]} 81. Ra3 {[%emt 0:00:12]} Nd6 {[%emt 0:00:31]} 82. Ra4 {[%emt 0:00:27]} Nf7 {[%emt 0:00:13]} 83. Ra5 $1 {[%emt 0:00:18]} Kh4 {[%emt 0:00:40]} 84. Kf2 {[%emt 0:01:21]} Ng5 {[%emt 0:00:06]} 85. Ra4 {[%emt 0:00:46]} Kh3 {[%emt 0:00:07]} 86. Rf4 {[%emt 0:00:36]} g3+ {[%emt 0:00:45]} 87. Kg1 $1 {[%emt 0:00:13]} g2 {[%emt 0:00:03]} 88. Kf2 {[%emt 0:00:30]} Kh2 {[%emt 0:01:37]} 89. Rg4 {[%emt 0:00:07]} Nh3+ {[%emt 0:00:37]} 90. Kxf3 {[%emt 0:00:07]} g1=Q {[%emt 0:00:04]} 91. Rxg1 {[%emt 0:00:06]} Nxg1+ {[%emt 0:00:42]} 92. Ke4 {[%emt 0:02:38]} 1/2-1/2

[Event "3rd Gujarat GM Open 2022"]
[Site "Ahmedabad"]
[Date "2022.04.07"]
[Round "10.16"]
[White "Satvik Sharma"]
[Black "Gusain, Himal"]
[Result "0-1"]
[ECO "A80"]
[WhiteElo "1753"]
[BlackElo "2408"]
[Annotator "TA"]
[PlyCount "64"]
[EventDate "2022.03.31"]
[EventType "swiss"]
[EventCountry "IND"]
[SourceTitle "playchess.com"]
[Source "ChessBase"]
[SourceQuality "1"]
[TimeControl "5400+30"]

{[%evp 9,64,27,16,0,0,0,0,-14,0,-15,2,0,8,0,0,0,0,-76,-71,-55,-70,-62,-69,-91,-96,-122,-125,-300,-300,-293,-290,-301,-292,-381,-376,-371,-401,-391,-365,-460,-466,-468,-452,-529,-468,-802,-421,-431,-422,-425,-423,-406,-293,-309,-254,-321,-314]} 1. d4 {[%emt 0:00:03]} f5 {[%emt 0:00:33]} 2. Bf4 {[%emt 0:00:21]} Nf6 {[%emt 0:00:09]} 3. e3 {[%emt 0:00:07]} d6 {[%emt 0:00:17]} 4. h3 {[%emt 0:00:41]} g6 {[%emt 0:00:06]} 5. Nc3 {[%emt 0:03:17]} Bg7 {[%emt 0:00:27] [#]} 6. g4 $146 {[%emt 0:00:51] A80: Dutch Defence: Unusual White second moves.} ({Predecessor:} 6. Bc4 e6 7. Nf3 O-O 8. O-O Kh8 9. Bh2 Qe7 10. Re1 Ne4 11. Bd3 d5 12. Ne2 {0-1 (45) Boe,M (2321)-Kobalia,M (2628) Tallinn 2016}) 6... fxg4 {[%emt 0:00:19]} 7. hxg4 {[%emt 0:00:36]} Bxg4 {[%emt 0:00:19]} 8. Qd2 {[%emt 0:00:44] The position is equal.} Nh5 {[%emt 0:10:00]} 9. Bg5 {[%emt 0:04:37]} Bf6 {[%emt 0:00:34]} 10. Bh6 {[%emt 0:03:01]} Nc6 {[%emt 0:00:08]} 11. f3 {[%emt 0:02:00]} Bd7 {[%emt 0:00:06]} ({Don't play} 11... Ng3 {[#]} 12. fxg4 $1 Nxh1 13. Qh2 $16 (13. g5 Ng3 $16)) 12. Nge2 {[%emt 0:01:58] Inhibits Ng3.} e6 {[%emt 0:00:40]} 13. Bh3 {[%emt 0:08:00]} (13. O-O-O $1 $11 {keeps the balance.}) 13... Bh4+ $17 {[%emt 0:02:06]} 14. Kd1 {[%emt 0:00:09]} Bg5 $1 {[%emt 0:01:26]} 15. Bxg5 {[%emt 0:00:29]} Qxg5 {[%emt 0:00:05]} 16. d5 {[%emt 0:02:06]} exd5 {[%emt 0:01:24] Hoping for ...Bxh3.} 17. Bxd7+ {[%emt 0:00:12]} Kxd7 {[%emt 0:00:06]} 18. Nxd5 $2 {[%emt 0:00:13] [#] Loses the game.} (18. f4 $17 {was called for.} Qf6 19. Qxd5) 18... Qg2 $1 $19 {[%emt 0:02:49][%csl LRf3,LRh1]} 19. Rg1 {[%emt 0:01:29]} Qxf3 {[%emt 0:00:17]} 20. Kc1 {[%emt 0:00:13]} Nf6 {[%emt 0:02:11]} 21. c4 {[%emt 0:02:08]} Raf8 {[%emt 0:05:10][%cal Ba8f8,Bf8f5,Bf5e5,Be5e3,Be3f3,Bf3f4,Bf4d4,Bd4d5][%mdl 32] And now ...Ne4 would win.} 22. b3 {[%emt 0:00:44]} Nxd5 {[%emt 0:02:56]} 23. cxd5 {[%emt 0:00:07]} Ne7 {[%emt 0:00:03]} 24. Nf4 {[%emt 0:00:41]} Rf5 {[%emt 0:01:22]} 25. Qd4 {[%emt 0:03:33]} Re5 {[%emt 0:01:19]} 26. Qa4+ {[%emt 0:00:42]} Kc8 {[%emt 0:00:11]} 27. Qxa7 {[%emt 0:00:38]} (27. Kb2 $142 Qxe3 28. Rac1) 27... Qxe3+ {[%emt 0:00:10]} 28. Qxe3 {[%emt 0:00:06]} Rxe3 {[%emt 0:00:04]} 29. Kd2 {[%emt 0:00:15]} Rf3 {[%emt 0:00:41]} 30. Rae1 {[%emt 0:00:31]} Rxf4 {[%emt 0:00:22]} 31. Rxe7 {[%emt 0:00:07]} Rd4+ {[%emt 0:00:02]} 32. Ke3 {[%emt 0:00:28]} Rxd5 {[%emt 1:10:08] Weighted Error Value: White=0.48/Black=0.24 (precise)} 0-1